Cogmind - Beta 16 @@@ ROGUE MODE // 2025.10.25 @ 11:33:10 Player: KeKe Result: Destroyed by G-47 Trooper with Particle Gun Performance ------------- Evolutions (0) 0 Regions Visited (3) 600 Robots Destroyed (45) 225 Value Destroyed (1040) 1040 Prototype IDs (5) 100 Alien Tech Used (0) 0 Bonus (288) 288 TOTAL SCORE: 2253 Bonus ------- Follower Combat Kills 288 Cogmind --------- Core Integrity 0/250 Matter 300/300 Energy 143/143 System Corruption 1% Temperature Cool (9) Movement Treading (123) Location -7/Recycling Parts ------- > --- POWER (1) -------- Deuterium-Nuclear Engine > --- PROPULSION (2) --- Treaded Carbon-Compact Exoskeleton > --- UTILITY (2) ------ Armored Scrap Engine > --- WEAPON (2) ------- Cycling Electro Pulse Construct/C Ripper > --- INVENTORY (5) ---- (None) Peak State ------------ > --- POWER ------------ Deuterium-Nuclear Engine > --- PROPULSION ------- Treaded Carbon-Compact Exoskeleton > --- UTILITY ---------- Armored Scrap Engine > --- WEAPON ----------- Cycling Electro Pulse Construct/C Ripper > --- INVENTORY -------- (None) [Rating: 35] Favorites ----------- Power Light Ion Engine Engine Light Ion Engine Propulsion Wheel Treads Constructs Leg Aluminum Leg Wheel Wheel Utility Small Storage Unit Device Improved Terrain Scanner Storage Small Storage Unit Processor Visual Processing Unit Protection Scrap Shield Weapon Heavy Assault Rifle Energy Gun Makeshift Laser Energy Cannon Improved EM Pulse Cannon Ballistic Gun Heavy Assault Rifle Launcher Subdweller Shrapnel Launcher Special Weapon Flamer Slashing Weapon Ripper Build | -11 -10 -10 -7 ------- Run | Yrd Mat Sub Rec Slots Evolved . | . . . . Power . | . . . . Propulsion . | . . . . Utility . | . . . . Weapon . | . . . . Parts Attached 37 | 4 2 19 12 Power 3 | . . 2 1 Engine 3 | . . 2 1 Core . | . . . . Reactor . | . . . . Propulsion 9 | 2 . 4 3 Treads . | . . . . Leg . | . . . . Wheel 9 | 2 . 4 3 Hover . | . . . . Flight . | . . . . Utility 10 | 1 . 4 5 Device 6 | 1 . 2 3 Storage . | . . . . Processor 1 | . . 1 . Hackware . | . . . . Protection 3 | . . 1 2 Artifact . | . . . . Weapon 15 | 1 2 9 3 Energy Gun 5 | 1 . 3 1 Energy Cannon 1 | . . . 1 Ballistic Gun 6 | . 2 4 . Ballistic Cannon . | . . . . Launcher 1 | . . . 1 Special Weapon 1 | . . 1 . Impact Weapon . | . . . . Slashing Weapon 1 | . . 1 . Piercing Weapon . | . . . . Special Melee Weapon . | . . . . Unidentified Prototypes 1 | . . . 1 Parts Lost 12 | . . 8 4 Power 1 | . . 1 . Propulsion 2 | . . 1 1 Utility 3 | . . 2 1 Weapon 6 | . . 4 2 Highest Loss Streak 4 | . . 2 4 To Critical Strikes . | . . . . Average Backups 4 | 4 6 5 2 Power . | 1 1 . . Propulsion 1 | 2 3 1 . Utility . | . . . . Weapon 2 | 1 1 2 1 Tool/Special . | . . . . Unused Backups 10 | 7 1 1 1 Power 1 | 1 . . . Propulsion 4 | 4 . . . Utility 3 | 1 . 1 1 Weapon 2 | 1 1 . . Tool/Special . | . . . . Average Slot Usage (%) 86 | . 97 90 76 Engine 12 | . 14 13 10 Wheel 26 | . 28 28 22 Device 8 | . 14 6 14 Storage 4 | . 14 6 . Protection 4 | . . 5 4 Energy Gun 4 | . 2 2 6 Energy Cannon 1 | . . . 4 Ballistic Gun 14 | . 24 20 . Slashing Weapon 5 | . . 3 9 Peak Build Rating 35 | 9 12 17 35 Average Rating 14 | 6 11 12 19 On Entrance 11 | 6 9 12 17 Avg Prop Armor Cover (%) . | . . . . Naked Turns . | . . . . Heaviest Build 29 | 13 15 29 29 Greatest Support 44 | 20 20 36 44 Greatest Overweight (x) 2 | . . 1 2 Average Overweight (x) . | . . . . Largest Inventory Capacity 8 | 8 8 8 5 Average Capacity 6 | 8 8 6 5 Most Carried 8 | 6 7 8 5 Average Carried 4 | 4 6 5 2 Final Capacity 8 | 8 8 5 5 Final Carried 7 | 5 7 2 . Scrap Engine Consumption 42 | . . . 42 Constructs Created 3 | . . . 3 Constructs Modified 2 | . . . 2 Class Distribution -------------------- 68% | Mutant 16% | Scavenger-Mutant 10% | Commander-Mutant 4% | Commander-Construct Dominant Class ---------------- Mutant | -10/Materials Mutant | -10/Subcaves Scavenger-Mutant | -7/Recycling Resources | -11 -10 -10 -7 ----------- Run | Yrd Mat Sub Rec Matter Collected 1241 | 288 26 736 191 Remotely . | . . . . Salvage Created 2804 | 195 26 750 1833 Parts 121 | 11 2 52 56 Haulers Intercepted . | . . . . Recyclers Shooed 2 | . . . 2 Parts Field Recycled . | . . . . Retrieved Matter . | . . . . Parts Self-Destructed 20 | . . 20 . Prevented . | . . . . Parts Restored . | . . . . Kills | -11 -10 -10 -7 ------- Run | Yrd Mat Sub Rec Combat Hostiles Destroyed 24 | . . 20 4 Guns 23 | . . 20 3 Cannons 1 | . . . 1 Classes Destroyed 11 | 3 1 2 5 Worker 2 | 2 . . . Builder 1 | . . . 1 Tunneler 5 | 5 . . . Recycler 12 | 1 . . 11 Watcher 1 | . 1 . . Swarmer 4 | . . 3 1 Duelist 1 | . . . 1 Demolisher 1 | . . . 1 Programmer 1 | . . . 1 Subdweller 17 | . . 17 . Scientist 1 | . . . 1 Best Kill Streak 7 | 4 1 3 7 Combat Bots Only 4 | . . 3 4 Max Kills in Single Turn 1 | 1 1 1 1 Gunslinging . | . . . . Exploded . | . . . . Melee . | . . . . Uniques/NPCs Destroyed . | . . . . Combat | -11 -10 -10 -7 -------- Run | Yrd Mat Sub Rec Hostile Shots Fired 148 | . . 126 22 Missed 52 | . . 48 4 Hits 96 | . . 78 18 Melee 3 | . . . 3 Projectile 93 | . . 78 15 AOE 3 | . . . 3 Critical Strikes 3 | . . 1 2 Damage Taken 1960 | . . 1525 435 Core 251 | . . 161 90 Absorbed by Shields . | . . . . Core Remaining (%) 100 | 100 . . . Volleys Fired 130 | 16 1 100 13 Largest 2 | 2 2 2 2 Hottest 149 | 70 46 110 149 Shots Fired 237 | 29 2 183 23 Gun 223 | 29 2 172 20 Cannon 3 | . . . 3 Launcher . | . . . . Special 11 | . . 11 . Kinetic 180 | 16 2 153 9 Thermal 54 | 13 . 30 11 Explosive . | . . . . Electromagnetic 3 | . . . 3 Robot Hit Streak 25 | 9 11 25 13 Robot Miss Streak 3 | 2 . 3 1 Penetration Max . | . . . . Secondary Targets 2 | . . 2 . Max Gunslinging Chain 1 | . . 1 . Shots Hit Robots 193 | 18 2 119 54 Core Hits 65 | 9 1 37 18 Critical Kills 2 | . . 2 . Critical Parts Destroyed . | . . . . Critical Strikes 4 | . . 3 1 Destroy 3 | . . 3 . Sever 1 | . . . 1 Melee Attacks 55 | . . 14 41 Impact . | . . . . Slashing 55 | . . 14 41 Piercing . | . . . . Sneak Attacks 14 | . . . 14 Combat Hostiles . | . . . . Follow-up Attacks . | . . . . Damage Inflicted 4800 | 221 28 1791 2760 Guns 2381 | 221 28 1791 341 Cannons 90 | . . . 90 Explosions . | . . . . Melee 2329 | . . . 2329 Ramming . | . . . . Kinetic 1905 | 110 28 1600 167 Thermal 476 | 111 . 191 174 Explosive . | . . . . Electromagnetic 90 | . . . 90 Impact . | . . . . Slashing 2329 | . . . 2329 Piercing . | . . . . Highest Corruption 1 | . . . 1 Average Corruption 1 | . . . 1 Corruption Purged . | . . . . Corruption Blocked . | . . . . Effects 7 | . . . 7 Message Errors 4 | . . . 4 Data Loss (minor) 3 | . . . 3 Overload Shots . | . . . . Overflow Damage 734 | . . . 734 Projectiles . | . . . . Explosions . | . . . . Melee 734 | . . . 734 Knockbacks . | . . . . Impact . | . . . . Kinetic . | . . . . Secondary . | . . . . Self-Inflicted Damage . | . . . . Shots . | . . . . Rammed . | . . . . Targets Rammed . | . . . . Kicked . | . . . . Crushed . | . . . . Highest Temperature 248 | 27 . . 248 Average Temperature 117 | 14 . . 136 Received Heat Transfer 261 | . . 225 36 Siege Activations . | . . . . Martial Activations . | . . . . Shielding Activations . | . . . . Robots Disrupted . | . . . . Combat Hostiles . | . . . . Robots Corrupted . | . . . . Combat Hostiles . | . . . . Parts Fried . | . . . . Impact Corruptions . | . . . . Robots Melted . | . . . . Combat Hostiles . | . . . . Parts Melted . | . . . . Heat Transferred 1004 | 274 . 359 371 Parts Sabotaged . | . . . . Parts Stolen . | . . . . Parts Stripped . | . . . . Power Chain Reactions . | . . . . Alert | -11 -10 -10 -7 ------- Run | Yrd Mat Sub Rec Maximum Alert Level . | . . . . Low Security (%) 100 | 100 100 . 100 Level 1 . | . . . . Level 2 . | . . . . Level 3 . | . . . . Level 4 . | . . . . Level 5 . | . . . . High Security . | . . . . Max Security . | . . . . Peak Influence 63 | 15 20 . 63 Initial 6 | . 6 . . Average 5 | 4 3 . 6 Influence Increases 506 | 40 37 70 359 Destroy 0b10 Robot/C 240 | . . 60 180 Destroy 0b10 Robot/NC 175 | 40 5 . 130 Destroy Leader 12 | . 2 10 . Allied During Kill 15 | . . . 15 Disable Machine 15 | . . . 15 Destroy Structure 19 | . . . 19 Lose Combat Pursuer 30 | . 30 . . Influence Decreases 463 | 30 27 90 316 Entered New Map 14 | . 4 10 . Time Decay 346 | 30 23 80 213 Lost Part 40 | . . . 40 Lost Ally 63 | . . . 63 Squads Dispatched . | . . . . Investigation . | . . . . Extermination . | . . . . Reinforcement . | . . . . Assault . | . . . . Garrison . | . . . . Intercept . | . . . . Searches Triggered . | . . . . Construction Impeded . | . . . . Haulers Reinforced . | . . . . Active Scanning Responses . | . . . . Cargo Convoy Interrupts . | . . . . Stealth | -11 -10 -10 -7 --------- Run | Yrd Mat Sub Rec Distress Signals 3 | . 1 . 2 Communications Jammed . | . . . . Distress Signals . | . . . . Times Spotted 36 | . 2 20 14 Peak Tracking Total 4 | . 3 4 4 Tactical Retreats 2 | . 1 1 . Traps | -11 -10 -10 -7 ------- Run | Yrd Mat Sub Rec Traps Triggered 1 | . 1 . . Indirectly . | . . . . Trap Hack Attempts . | . . . . Triggered . | . . . . Disarmed . | . . . . Reprogrammed . | . . . . Reused . | . . . . Traps Extracted . | . . . . Installed . | . . . . Triggered . | . . . . Machines | -11 -10 -10 -7 ---------- Run | Yrd Mat Sub Rec Machines Disabled 2 | . . . 2 Max in Single Turn . | . . . . Machines Repaired . | . . . . Machines Dismantled . | . . . . Machines Sabotaged . | . . . . Overloaded Fab Kills . | . . . . Hacking | -11 -10 -10 -7 --------- Run | Yrd Mat Sub Rec Machines Accessed 7 | . . 3 4 Terminals . | . . . . Fabricators . | . . . . Repair Stations . | . . . . Recycling Units 3 | . . . 3 Scanalyzers . | . . . . Garrison Access . | . . . . Total Hacks 15 | . . 5 10 Successful 9 | . . 5 4 Failed 6 | . . . 6 Catastrophic . | . . . . Database Lockouts . | . . . . Manual . | . . . . Terminals . | . . . . Fabricators . | . . . . Repair Stations . | . . . . Recycling Units 8 | . . . 8 Scanalyzers . | . . . . Garrison Access . | . . . . Terminal Hacks 7 | . . 5 2 Record 3 | . . 3 . Open Door 1 | . . 1 . Release Object 3 | . . 1 2 Fabricator Hacks . | . . . . Repair Station Hacks . | . . . . Recycling Unit Hacks 2 | . . . 2 Report Inventory 1 | . . . 1 Retrieve Components 1 | . . . 1 Scanalyzer . | . . . . Garrison Access Hacks . | . . . . Unauthorized Hacks . | . . . . Terminals . | . . . . Fabricators . | . . . . Repair Stations . | . . . . Recycling Units . | . . . . Scanalyzers . | . . . . Garrison Access . | . . . . Data Cores Recovered . | . . . . Used . | . . . . Hacking Detections 2 | . . . 2 Full Trace Events 2 | . . . 2 Feedback Events . | . . . . Feedback Blocked . | . . . . Robot Schematics Acquired . | . . . . Robots Built . | . . . . Authchips . | . . . . Time . | . . . . Total Robot Build Rating . | . . . . Part Schematics Acquired . | . . . . Parts Built . | . . . . Authchips . | . . . . Time . | . . . . Total Part Build Rating . | . . . . Part Studies Acquired . | . . . . Parts Repaired . | . . . . Time . | . . . . Parts Recycled . | . . . . Recycled Matter . | . . . . Retrieved Matter . | . . . . Retrieved Components 1 | . . . 1 Parts Scanalyzed . | . . . . Part Schematics Acquired . | . . . . Parts Damaged . | . . . . Bothacking | -11 -10 -10 -7 ------------ Run | Yrd Mat Sub Rec Used RIF Installer . | . . . . Robots Hacked . | . . . . Non-combat . | . . . . Combat . | . . . . Robot Hacks Applied . | . . . . Relay Couplers Released . | . . . . Fabnet Peak Effective % . | . . . . Robots Rewired 10 | . . . 10 Allies Hacked . | . . . . Hacks Repelled . | . . . . Allies | -11 -10 -10 -7 -------- Run | Yrd Mat Sub Rec Total Allies 10 | . . . 10 Largest Group 10 | . . . 10 Highest-Rated Group 150 | . . . 150 Highest-Rated Ally 34 | . . . 34 Total Orders . | . . . . Ally Attacks 27 | . . . 27 Total Damage 824 | . . . 824 Kills 11 | . . . 11 Allies Corrupted . | . . . . Allies Melted 1 | . . . 1 Intel | -11 -10 -10 -7 ------- Run | Yrd Mat Sub Rec Active Infowar (turns) 1526 | 28 64 1084 350 Optics 318 | . . 313 5 Sensors 344 | . . . 344 Terrain 863 | 28 64 771 . Structural 161 | . . . 161 Robot Analysis Total . | . . . . Derelict Logs Recovered 2 | . . 2 . Drone Launches . | . . . . Drone Recoveries . | . . . . Exploration | -11 -10 -10 -7 ------------- Run | Yrd Mat Sub Rec Turns Passed 3431 | 112 64 2223 1032 Spaces Moved 2725 | 50 46 1997 632 Core 162 | . . . 162 Treads 7 | . . . 7 Legs 24 | 24 . . . Wheels 2532 | 26 46 1997 463 Hover . | . . . . Flight . | . . . . Fastest Speed 50 | 80 80 80 50 Average Speed 91 | 99 80 89 97 Slowest Speed 150 | 120 80 105 150 Overloaded Moves . | . . . . Propulsion Burnouts . | . . . . Robots Hopped . | . . . . Potential Cave-ins . | . . . . Cave-ins Triggered 1 | . . 1 . Exploration Rate (%) 46 | 3 11 88 85 Regions Visited 3 Branch Regions 2 Pre-discovered Areas 3 | . . 3 . Known Exits Taken 1 | . . 1 . Unknown Exits Taken 2 | 1 1 . . Scrap Searched 6 | . . 6 . Spaces Dug 9 | . . 3 6 Terrain Destroyed 9 | . . 3 6 Melee 9 | . . 3 6 Projectile . | . . . . AOE . | . . . . Terrain Rammed . | . . . . Walls Destroyed . | . . . . Machines Disabled . | . . . . Actions | -11 -10 -10 -7 --------- Run | Yrd Mat Sub Rec Total 3341 | 83 70 2221 967 Wait 249 | 7 15 56 171 Move 2722 | 49 45 1996 632 Hop . | . . . . Pick Up 18 | 3 3 7 5 Fast Attach 14 | 1 2 6 5 Attach 12 | . . 7 5 Detach 1 | . . 1 . Swap 29 | 3 1 17 8 Drop 33 | 4 3 11 15 Fire 130 | 16 1 100 13 Melee 55 | . . 14 41 Ram . | . . . . Kick . | . . . . Crush . | . . . . Escape Stasis . | . . . . Rewire 72 | . . . 72 Trap . | . . . . Miscellaneous 6 | . . 6 . Route ------- -11/Scrapyard -10/Materials -10/Subcaves (discovered 3 exits: [*Mat x2] / *Rec) -7/Recycling History --------- Turn | Location | Event 11 | -11/Scrapyard | Discovered new exit (range 3) 113 | -11/Scrapyard | Entered Materials 168 | -10/Materials | Discovered new exit (range 4) 177 | -10/Materials | Entered Subcaves 179 | -10/Subcaves | Learned location of Storage (-7) 310 | -10/Subcaves | Build established: Mutant 313 | -10/Subcaves | Shifting Twisted Machinery released Flamer 401 | -10/Subcaves | Shifting Twisted Machinery released Sub. Power Source 1070 | -10/Subcaves | Learned location of Zion (-6) 1245 | -10/Subcaves | Met a Zionite searching for "candidates" 1483 | -10/Subcaves | Discovered new exit (range 8) 1494 | -10/Subcaves | A swath of the cavern ceiling suddenly collapsed 1669 | -10/Subcaves | Shifting Twisted Machinery released Sub. Power Source 1674 | -10/Subcaves | Shifting Twisted Machinery released Sub. Shrapnel Launcher 1870 | -10/Subcaves | A swath of the cavern ceiling suddenly collapsed 2241 | -10/Subcaves | Shifting Twisted Machinery released Sub. Shrapnel Launcher 2244 | -10/Subcaves | Shifting Twisted Machinery released Mak. Laser 2284 | -10/Subcaves | Core integrity fell below 50% 2320 | -10/Subcaves | Discovered new exit (range 11) 2375 | -10/Subcaves | Visited Clippyterm 2378 | -10/Subcaves | Identified exit to Recycling 2398 | -10/Subcaves | Crushed by falling debris 2400 | -10/Subcaves | Entered Recycling 2557 | -7/Recycling | Build established: Scavenger-Mutant 2894 | -7/Recycling | Lost 4 parts (1n1u2w) 3074 | -7/Recycling | Scanned before Scraplab entrance 3094 | -7/Recycling | Entered Scraplab 3115 | -7/Recycling | Angered Scraplab inhabitants 3116 | -7/Recycling | Core integrity fell below 20% 3116 | -7/Recycling | Found Prototype Device 3120 | -7/Recycling | Identified Scrap Engine 3226 | -7/Recycling | Build established: Commander-Mutant 3270 | -7/Recycling | Lost 3 allies 3432 | -7/Recycling | Destroyed by G-47 Trooper with Particle Gun Last Messages --------------- 03408_ Destroyed Com. Wheel. 03408_ Destroyed Tractor Beam. 03409_ R-06 Scavenger sends out distress signal. 03411_ Slug penetrates G-47 Trooper. 03411_ G-47 Trooper destroyed. 03412_ G-47 Trooper springs to life. 03413_ S-27 Virus springs to life. 03414_ R-06 Scavenger collects Imp. Heat Sink. 03414_ Slug penetrates P-60 Hacker. 03414_ P-60 Hacker destroyed. 03416_ ZGMYDO0L1JF5R 1RMKI#RGIFT%X/3>NKO 03422_ Scrap Engine modifies Wheeled Mono-Compact Exoskeleton: Support +3, Coverage +27 Expanded to 2 slots (? T123 S44) Renamed Treaded Carbon-Compact Exoskeleton. 03422_ Slug penetrates Wall. 03424_ R-06 Scavenger collects Shock Rifle. 03425_ S-27 Virus destroyed. 03428_ Slug penetrates G-47 Trooper. 03430_ Commando 4b destroyed. Map ----- +----------------------------------------------------+ | ##????????????# ### """"" # # "#??? | | ##????????????# ## """"" # / "#??? | | ############### "# """"" # # #??? | | #### ### ## ## # ###/##### | | ######## """ ## #### """"" # | | ??####?# """"" ## #### """"" + | | ???????# """"" # #?# """"" # | | ???????# """"" # #?# # ###+##### | | ???????# """ + #?# """"" # #???????? | | ???????# # #?# """"" # #???????? | | ???????# # #?# """"" # #???????? | | ???????# ## ##?# # #???????? | | ???????# ## #??# # #???????? | | ???????# "Y" ## ###? # #???????? | | ???????# """ ## ##T###+######## ????????? | | ???????#####/######### ?? ????????? | | ???????????# #??#%%%## ##?#????????? | | ???????????# ####%%%## """ """ "#??????????? | | ???????????# """ """ T#??????????? | | ???????????# """ """ "#??????????? | | ???????????# #???????????? | | ???????????###+#+####### ############# | | ???????????# #?# % | | ???????????# #?# ta g != | | ???????????# #?# k [%==% i | | ???????????# #?# @ r ####*############ | | ??????????## #?# #########?# %* ?????????? | | ??????????#% #?# #?????????#/ ???????? | | ??????????##! #?# #?????????# = #??????? | | ??????????#%! #?# #?????????# %!! #??????? | | ??????????######+#####?# #?????????# !#??????? | | ??????????????# ###### #?????????#! !#??????? | | ??????????????# #?????????# ! #??????? | | ??????????????# ##"Y"###?????????# #??????? | | ??????????????######"""#???????????########??????? | | ???????????????????#####?????????????????????????? | | ?????????????????????????????????????????????????? | | | | | | | | | | | | | | | | | | | | | | | | | | | +----------------------------------------------------+ Best States ------------- Heat Dissipation 25 Coolant Potential 50 Energy Generation 15 Energy Capacity 250 Matter Stores 300 Matter Capacity 300 Sight Range 21 Robot Scan Range 15 Terrain Scan Range 16 Terrain Scan Density 10 Armor Coverage 800 Evasion (%) 55 Recoil Reduction 2 Item Schematics ----------------- None Robot Schematics ------------------ None Fabricated ------------ Nothing Repaired ---------- Nothing Studied --------- None Alien Tech Used ----------------- None Achievements -------------- Not So Scrappy Challenges ------------ None Game ------ Seed ThrowingAutogunBarrier Manual? 0 Play Time 00:37:36 Cumulative 125.0 hours Start 2025.10.25 @ 10:48:55 End 2025.10.25 @ 11:33:10 Sessions 1 Manual Loads 0 Difficulty Rogue Special Mode None Game No. 120 Rogue 120 Adventurer 0 Explorer 0 Win Type - Total 1 Types 1/0/0/0/0/0/0/0/0/0 Lore% 60 Gallery% 50 Achievement% 32 Wizard Run 0 Options --------- Layout 0 ASCII 0 Keyboard 0 Movement Mouse Keybinds 0 Fullscreen 2 Font 18/X11 Map View 76x50 Zoom Use 0% Tactical HUD 1 Map Filters NONE Filters NONE Steam 1 RUN: 0997b73a-ea2b-418b-8e2f-37dd1b7553a4